[Event "*** Titled Tuesday 3|2 Blitz"]
[Site "Chess.com"]
[Date "2016.07.05"]
[Round "5"]
[White "salomez"]
[Black "cool64chess"]
[Result "1-0"]
[WhiteElo "2143"]
[BlackElo "2206"]
[TimeControl "180+2"]
[EndTime "11:59:55 PDT"]
[Termination "salomez won on time"]

1. e4 {[%clk 0:03:01.9]} 1... e6 {[%clk 0:02:57.8]} 2. d4 {[%clk 0:03:02.4]}
2... d5 {[%clk 0:02:58.4]} 3. Nc3 {[%clk 0:03:02.8]} 3... Bb4 {[%clk 0:02:57.8]}
4. e5 {[%clk 0:03:00.5]} 4... c5 {[%clk 0:02:58.5]} 5. a3 {[%clk 0:03:01.3]}
5... Bxc3+ {[%clk 0:02:58.8]} 6. bxc3 {[%clk 0:03:02.9]} 6... Qc7 {[%clk
0:02:59.4]} 7. Nf3 {[%clk 0:02:54.9]} 7... Ne7 {[%clk 0:02:53.3]} 8. h4 {[%clk
0:02:54.6]} 8... b6 {[%clk 0:02:51]} 9. Bb5+ {[%clk 0:02:53.5]} 9... Bd7 {[%clk
0:02:50.3]} 10. Bd3 {[%clk 0:02:54.3]} 10... Nbc6 {[%clk 0:02:47.7]} 11. h5
{[%clk 0:02:49.7]} 11... h6 {[%clk 0:02:47.3]} 12. Rh4 {[%clk 0:02:48.7]} 12...
c4 {[%clk 0:02:36.4]} 13. Be2 {[%clk 0:02:46.9]} 13... O-O-O {[%clk 0:02:34.3]}
14. a4 {[%clk 0:02:46.3]} 14... Na5 {[%clk 0:02:32.1]} 15. Ba3 {[%clk
0:02:43.8]} 15... Nf5 {[%clk 0:02:31.7]} 16. Rf4 {[%clk 0:02:39.6]} 16... f6
{[%clk 0:02:25.5]} 17. g4 {[%clk 0:02:26.1]} 17... fxe5 {[%clk 0:02:18.4]} 18.
dxe5 {[%clk 0:02:26.9]} 18... g5 {[%clk 0:01:12.1]} 19. hxg6 {[%clk 0:02:27.9]}
19... Ng7 {[%clk 0:01:12.9]} 20. Rf7 {[%clk 0:02:12.9]} 20... Rhg8 {[%clk
0:01:01]} 21. Be7 {[%clk 0:02:14.1]} 21... Be8 {[%clk 0:00:32.9]} 22. Bxd8
{[%clk 0:02:10]} 22... Qxd8 {[%clk 0:00:32.3]} 23. Rxa7 {[%clk 0:02:09.9]} 23...
Kb8 {[%clk 0:00:31.5]} 24. Rxa5 {[%clk 0:01:54.8]} 24... bxa5 {[%clk 0:00:31.2]}
25. Qb1+ {[%clk 0:01:55.9]} 25... Ka8 {[%clk 0:00:30.4]} 26. Nd4 {[%clk
0:01:44.9]} 26... Bxg6 {[%clk 0:00:27.1]} 27. Qb5 {[%clk 0:01:44.7]} 27... Qc7
{[%clk 0:00:24.1]} 28. Nc6 {[%clk 0:01:14]} 1-0

[Event "*** Titled Tuesday 3|2 Blitz"]
[Site "Chess.com"]
[Date "2016.07.05"]
[Round "5"]
[White "ftorodent"]
[Black "amaidel"]
[Result "1-0"]
[WhiteElo "2407"]
[BlackElo "2442"]
[TimeControl "180+2"]
[EndTime "11:59:58 PDT"]
[Termination "ftorodent won by resignation"]

1. d4 {[%clk 0:03:01.9]} 1... d5 {[%clk 0:02:54.6]} 2. c4 {[%clk 0:03:02.7]}
2... c6 {[%clk 0:02:54.8]} 3. Nf3 {[%clk 0:03:00.7]} 3... Nf6 {[%clk 0:02:54.9]}
4. Nc3 {[%clk 0:03:01.8]} 4... dxc4 {[%clk 0:02:55.3]} 5. a4 {[%clk 0:03:02.8]}
5... Bf5 {[%clk 0:02:55.6]} 6. Ne5 {[%clk 0:03:01.9]} 6... Nbd7 {[%clk 0:02:56]}
7. Nxc4 {[%clk 0:03:03]} 7... Nb6 {[%clk 0:02:56.6]} 8. Ne5 {[%clk 0:03:03.8]}
8... a5 {[%clk 0:02:57.7]} 9. e3 {[%clk 0:03:04.5]} 9... e6 {[%clk 0:02:55.5]}
10. g4 {[%clk 0:02:58.3]} 10... Bg6 {[%clk 0:02:50.8]} 11. h4 {[%clk 0:02:59.4]}
11... Ne4 {[%clk 0:02:10.9]} 12. h5 {[%clk 0:02:35.5]} 12... Qf6 {[%clk
0:02:09.5]} 13. Nxe4 {[%clk 0:02:17.5]} 13... Bxe4 {[%clk 0:02:09.1]} 14. f3
{[%clk 0:02:19.1]} 14... Bb4+ {[%clk 0:02:04.5]} 15. Bd2 {[%clk 0:02:11.9]}
15... Bxd2+ {[%clk 0:02:03.3]} 16. Kxd2 {[%clk 0:02:09.8]} 16... O-O-O {[%clk
0:01:56.6]} 17. fxe4 {[%clk 0:01:52.2]} 17... Qxe5 {[%clk 0:01:56.7]} 18. Bd3
{[%clk 0:01:53.8]} 18... Qd6 {[%clk 0:01:56.1]} 19. Qb3 {[%clk 0:01:50.1]} 19...
Nd7 {[%clk 0:01:56.5]} 20. e5 {[%clk 0:01:47.3]} 20... Qc7 {[%clk 0:01:53]} 21.
Ke2 {[%clk 0:01:42.3]} 21... f6 {[%clk 0:01:52.1]} 22. exf6 {[%clk 0:01:42.2]}
22... Nxf6 {[%clk 0:01:52.6]} 23. Qxe6+ {[%clk 0:01:11.6]} 23... Kb8 {[%clk
0:01:53]} 24. g5 {[%clk 0:00:57.4]} 24... Rhe8 {[%clk 0:01:51.8]} 25. Qf5 {[%clk
0:00:58]} 25... Nd5 {[%clk 0:01:49.5]} 26. Be4 {[%clk 0:00:41.1]} 26... Qb6
{[%clk 0:01:35]} 27. Rab1 {[%clk 0:00:16.1]} 27... Nxe3 {[%clk 0:01:35.6]} 28.
Kxe3 {[%clk 0:00:15]} 28... Qxd4+ {[%clk 0:01:35.2]} 29. Kf3 {[%clk 0:00:15.8]}
29... Rf8 {[%clk 0:01:35.6]} 30. Rbd1 {[%clk 0:00:14.5]} 30... Rxf5+ {[%clk
0:01:34]} 31. Bxf5 {[%clk 0:00:15.7]} 31... Qb6 {[%clk 0:01:33.5]} 32. Rxd8+
{[%clk 0:00:15.6]} 32... Qxd8 {[%clk 0:01:35.4]} 33. Kg4 {[%clk 0:00:16.4]}
33... Qd4+ {[%clk 0:01:35.3]} 34. Kf3 {[%clk 0:00:16.3]} 34... Qd5+ {[%clk
0:01:35.5]} 35. Be4 {[%clk 0:00:16.5]} 35... Qxg5 {[%clk 0:01:36.2]} 36. Bxh7
{[%clk 0:00:17.6]} 36... Qf6+ {[%clk 0:01:37.2]} 37. Kg4 {[%clk 0:00:17.8]}
37... Qc3 {[%clk 0:01:38]} 38. bxc3 {[%clk 0:00:17.8]} 1-0

[Event "*** Titled Tuesday 3|2 Blitz"]
[Site "Chess.com"]
[Date "2016.07.05"]
[Round "5"]
[White "dretch"]
[Black "Smirnov_Pavel"]
[Result "0-1"]
[WhiteElo "2627"]
[BlackElo "2549"]
[TimeControl "180+2"]
[EndTime "12:00:07 PDT"]
[Termination "Smirnov_Pavel won by resignation"]

1. d4 {[%clk 0:03:01.9]} 1... d5 {[%clk 0:03:00.1]} 2. c4 {[%clk 0:03:02.9]}
2... e6 {[%clk 0:03:01.1]} 3. Nc3 {[%clk 0:03:03.9]} 3... c6 {[%clk 0:03:02.3]}
4. Nf3 {[%clk 0:03:02.4]} 4... Nf6 {[%clk 0:03:02.8]} 5. e3 {[%clk 0:03:02]}
5... Nbd7 {[%clk 0:03:03.2]} 6. Bd3 {[%clk 0:03:02.9]} 6... dxc4 {[%clk
0:03:03.4]} 7. Bxc4 {[%clk 0:03:04.2]} 7... b5 {[%clk 0:03:04.5]} 8. Bd3 {[%clk
0:03:04.9]} 8... Bb7 {[%clk 0:03:05.6]} 9. e4 {[%clk 0:02:59.9]} 9... b4 {[%clk
0:03:05.8]} 10. Na4 {[%clk 0:03:01]} 10... c5 {[%clk 0:03:06.7]} 11. e5 {[%clk
0:03:02.1]} 11... Nd5 {[%clk 0:03:07.6]} 12. Nxc5 {[%clk 0:03:03.5]} 12... Nxc5
{[%clk 0:03:06]} 13. dxc5 {[%clk 0:03:04.7]} 13... Bxc5 {[%clk 0:03:06.8]} 14.
O-O {[%clk 0:03:04.9]} 14... Rc8 {[%clk 0:03:07.7]} 15. Ng5 {[%clk 0:02:59.2]}
15... Be7 {[%clk 0:03:08.1]} 16. Qh5 {[%clk 0:02:58.4]} 16... g6 {[%clk
0:03:01.4]} 17. Qh6 {[%clk 0:02:59]} 17... Bf8 {[%clk 0:03:01.5]} 18. Qh3 {[%clk
0:02:57.4]} 18... Rxc1 {[%clk 0:03:00.1]} 19. Bb5+ {[%clk 0:02:31.3]} 19... Bc6
{[%clk 0:02:43.6]} 20. Raxc1 {[%clk 0:02:16.1]} 20... Bxb5 {[%clk 0:02:44.4]}
21. Nxe6 {[%clk 0:02:16.9]} 21... Qd7 {[%clk 0:02:40.2]} 22. Ng7+ {[%clk
0:01:16.4]} 22... Bxg7 {[%clk 0:02:31]} 23. Rc8+ {[%clk 0:01:16.7]} 23... Ke7
{[%clk 0:02:31.9]} 24. Qh4+ {[%clk 0:01:17.1]} 24... Ke6 {[%clk 0:02:07.7]} 25.
Qh3+ {[%clk 0:01:02.9]} 25... f5 {[%clk 0:02:07.4]} 26. Rxh8 {[%clk 0:00:29.1]}
26... Bxh8 {[%clk 0:02:07.2]} 27. Re1 {[%clk 0:00:24.8]} 27... Nf4 {[%clk
0:01:56.1]} 28. Qh4 {[%clk 0:00:09.5]} 28... Qd2 {[%clk 0:01:35.2]} 29. Ra1
{[%clk 0:00:04.1]} 29... Ne2+ {[%clk 0:01:32.9]} 30. Kh1 {[%clk 0:00:05.1]}
30... Nc1 {[%clk 0:01:33.5]} 31. h3 {[%clk 0:00:04.6]} 31... Qe1+ {[%clk
0:01:32.7]} 32. Kh2 {[%clk 0:00:04.8]} 32... Bxe5+ {[%clk 0:01:33.5]} 33. g3
{[%clk 0:00:04.7]} 33... Qxf2+ {[%clk 0:01:34.1]} 34. Kh1 {[%clk 0:00:05.9]}
34... Bc6+ {[%clk 0:01:34.6]} 0-1

[Event "*** Titled Tuesday 3|2 Blitz"]
[Site "Chess.com"]
[Date "2016.07.05"]
[Round "5"]
[White "Andrejkin"]
[Black "jeaston1"]
[Result "0-1"]
[WhiteElo "2146"]
[BlackElo "2156"]
[TimeControl "180+2"]
[EndTime "12:00:35 PDT"]
[Termination "jeaston1 won by resignation"]

1. e4 {[%clk 0:03:01.9]} 1... c5 {[%clk 0:02:58.9]} 2. Nf3 {[%clk 0:03:02.7]}
2... Nc6 {[%clk 0:02:59.5]} 3. d4 {[%clk 0:03:02.8]} 3... cxd4 {[%clk
0:03:01.4]} 4. Nxd4 {[%clk 0:03:04.7]} 4... Nf6 {[%clk 0:03:02.5]} 5. Nc3 {[%clk
0:03:05.3]} 5... e5 {[%clk 0:03:04]} 6. Ndb5 {[%clk 0:03:06.8]} 6... d6 {[%clk
0:03:04.6]} 7. Nd5 {[%clk 0:03:08.4]} 7... Nxd5 {[%clk 0:03:04.9]} 8. exd5
{[%clk 0:03:10.3]} 8... Nb8 {[%clk 0:03:06.3]} 9. c4 {[%clk 0:03:12.2]} 9... a6
{[%clk 0:03:07]} 10. Qa4 {[%clk 0:03:13.2]} 10... Bd7 {[%clk 0:03:08]} 11. Qa3
{[%clk 0:02:53.6]} 11... Bxb5 {[%clk 0:03:05.4]} 12. cxb5 {[%clk 0:02:55.5]}
12... Nd7 {[%clk 0:02:53.8]} 13. bxa6 {[%clk 0:02:56.2]} 13... bxa6 {[%clk
0:02:53.9]} 14. Be2 {[%clk 0:02:54.8]} 14... Be7 {[%clk 0:02:53.2]} 15. O-O
{[%clk 0:02:53.7]} 15... O-O {[%clk 0:02:53.7]} 16. f4 {[%clk 0:02:54.2]} 16...
Qb6+ {[%clk 0:02:30.6]} 17. Kh1 {[%clk 0:02:52.2]} 17... Rfe8 {[%clk 0:02:24.9]}
18. Bd3 {[%clk 0:02:49.3]} 18... Nf6 {[%clk 0:02:20.9]} 19. Be3 {[%clk
0:02:46.8]} 19... Qb7 {[%clk 0:02:19.2]} 20. fxe5 {[%clk 0:02:45.2]} 20... dxe5
{[%clk 0:02:02]} 21. d6 {[%clk 0:02:47.1]} 21... Bf8 {[%clk 0:02:02.6]} 22. Bf5
{[%clk 0:02:41.3]} 22... Rad8 {[%clk 0:01:32.9]} 23. Bc5 {[%clk 0:02:25.8]}
23... Nd7 {[%clk 0:01:16.6]} 24. Qh3 {[%clk 0:02:22]} 24... g6 {[%clk
0:01:12.1]} 25. Bxd7 {[%clk 0:02:12.4]} 25... Qxd7 {[%clk 0:01:11.2]} 26. Qh4
{[%clk 0:02:08.8]} 26... Bxd6 {[%clk 0:00:40.7]} 27. Bxd6 {[%clk 0:02:10.7]}
27... Qxd6 {[%clk 0:00:40.5]} 28. Qc4 {[%clk 0:02:10.8]} 28... Qe6 {[%clk
0:00:39.2]} 29. Qe4 {[%clk 0:02:07.2]} 29... f5 {[%clk 0:00:38.7]} 30. Qe2
{[%clk 0:02:08.4]} 30... e4 {[%clk 0:00:37.3]} 31. b3 {[%clk 0:02:07]} 31... Rd3
{[%clk 0:00:37.2]} 32. Rad1 {[%clk 0:02:05.4]} 32... Red8 {[%clk 0:00:37.6]} 33.
Rxd3 {[%clk 0:02:03.6]} 33... Rxd3 {[%clk 0:00:38.5]} 34. Rd1 {[%clk 0:02:05.1]}
34... Qd5 {[%clk 0:00:39.5]} 35. Re1 {[%clk 0:01:57.5]} 35... e3 {[%clk
0:00:30.5]} 36. Rg1 {[%clk 0:01:55.7]} 36... f4 {[%clk 0:00:28.8]} 37. b4 {[%clk
0:01:53.4]} 37... h5 {[%clk 0:00:25.6]} 38. a4 {[%clk 0:01:51.6]} 38... Qe4
{[%clk 0:00:22.3]} 39. a5 {[%clk 0:01:48.5]} 39... Kh7 {[%clk 0:00:17.6]} 40.
Re1 {[%clk 0:01:44.7]} 40... Rd2 {[%clk 0:00:12]} 41. Qf3 {[%clk 0:01:43.2]}
41... Qxf3 {[%clk 0:00:12.9]} 42. gxf3 {[%clk 0:01:45.1]} 42... Rb2 {[%clk
0:00:14.5]} 43. Rc1 {[%clk 0:01:40.1]} 43... Rxb4 {[%clk 0:00:15.6]} 44. Rc7+
{[%clk 0:01:41.5]} 44... Kh6 {[%clk 0:00:16.2]} 45. h4 {[%clk 0:01:40.3]} 45...
Ra4 {[%clk 0:00:17]} 46. Rc8 {[%clk 0:01:41.1]} 46... Rxa5 {[%clk 0:00:17.5]}
47. Rh8+ {[%clk 0:01:39.3]} 47... Kg7 {[%clk 0:00:18.8]} 48. Re8 {[%clk
0:01:39.9]} 0-1

[Event "*** Titled Tuesday 3|2 Blitz"]
[Site "Chess.com"]
[Date "2016.07.05"]
[Round "5"]
[White "AndreyOstrovskiy"]
[Black "StoreySniper"]
[Result "1-0"]
[WhiteElo "2485"]
[BlackElo "2337"]
[TimeControl "180+2"]
[EndTime "12:00:41 PDT"]
[Termination "AndreyOstrovskiy won by resignation"]

1. e4 {[%clk 0:03:01.9]} 1... g6 {[%clk 0:03:00.9]} 2. d4 {[%clk 0:03:02.6]}
2... Bg7 {[%clk 0:03:02.8]} 3. Nc3 {[%clk 0:03:03.3]} 3... c5 {[%clk 0:03:03.7]}
4. d5 {[%clk 0:03:03.9]} 4... Bxc3+ {[%clk 0:03:02.2]} 5. bxc3 {[%clk
0:03:04.6]} 5... Qa5 {[%clk 0:03:03.3]} 6. Bd2 {[%clk 0:03:02.9]} 6... Nf6
{[%clk 0:03:02]} 7. c4 {[%clk 0:03:02.3]} 7... Qa4 {[%clk 0:03:03.1]} 8. Bc3
{[%clk 0:03:00.7]} 8... O-O {[%clk 0:02:59.3]} 9. Bd3 {[%clk 0:03:01.7]} 9... b5
{[%clk 0:02:54.5]} 10. e5 {[%clk 0:02:27.8]} 10... bxc4 {[%clk 0:02:20.6]} 11.
Bxg6 {[%clk 0:02:28.4]} 11... fxg6 {[%clk 0:01:47.4]} 12. exf6 {[%clk
0:02:27.7]} 12... exf6 {[%clk 0:01:48.2]} 13. Nf3 {[%clk 0:02:25.7]} 13... d6
{[%clk 0:01:42.1]} 14. O-O {[%clk 0:02:23.7]} 14... Bg4 {[%clk 0:01:39]} 15. h3
{[%clk 0:02:22.6]} 15... Bxf3 {[%clk 0:01:38.4]} 16. Qxf3 {[%clk 0:02:24.5]}
16... Nd7 {[%clk 0:01:39.8]} 17. Rfe1 {[%clk 0:02:22.7]} 17... Ne5 {[%clk
0:01:40.4]} 18. Qd1 {[%clk 0:02:20.4]} 18... Rae8 {[%clk 0:01:29.8]} 19. f4
{[%clk 0:02:20.2]} 19... Nd7 {[%clk 0:01:27.5]} 20. Qd2 {[%clk 0:02:20]} 20...
Nb6 {[%clk 0:01:05.8]} 21. f5 {[%clk 0:02:15.1]} 21... Rxe1+ {[%clk 0:00:44.2]}
22. Rxe1 {[%clk 0:02:15]} 22... Re8 {[%clk 0:00:43.7]} 23. Bxf6 {[%clk
0:02:04.1]} 23... c3 {[%clk 0:00:20.7]} 24. Bxc3 {[%clk 0:02:02.4]} 24... Nc4
{[%clk 0:00:04.6]} 25. Qf2 {[%clk 0:01:47.1]} 25... Rxe1+ {[%clk 0:00:05.4]} 26.
Qxe1 {[%clk 0:01:47.5]} 26... gxf5 {[%clk 0:00:03.3]} 27. Qe6+ {[%clk
0:01:45.5]} 27... Kf8 {[%clk 0:00:04.6]} 28. Qxf5+ {[%clk 0:01:45.1]} 28... Ke8
{[%clk 0:00:06.1]} 29. Qe6+ {[%clk 0:01:41.4]} 29... Kd8 {[%clk 0:00:06.5]} 30.
Bf6+ {[%clk 0:01:41.8]} 30... Kc7 {[%clk 0:00:07.9]} 31. Qg8 {[%clk 0:01:35.7]}
31... Qd7 {[%clk 0:00:07.8]} 32. c3 {[%clk 0:01:28.4]} 32... Ne3 {[%clk
0:00:08]} 33. g4 {[%clk 0:01:22.6]} 33... Nd1 {[%clk 0:00:02.7]} 34. Qg5 {[%clk
0:01:14]} 34... Kb6 {[%clk 0:00:03.7]} 35. Qd2 {[%clk 0:01:13.8]} 35... Qf7
{[%clk 0:00:05]} 36. Bd8+ {[%clk 0:01:08.4]} 36... Ka6 {[%clk 0:00:04.6]} 37.
Qxd1 {[%clk 0:01:09.5]} 37... c4 {[%clk 0:00:06.2]} 38. Qf1 {[%clk 0:01:09.3]}
38... h5 {[%clk 0:00:06.8]} 39. Qxf7 {[%clk 0:01:06.9]} 1-0

[Event "*** Titled Tuesday 3|2 Blitz"]
[Site "Chess.com"]
[Date "2016.07.05"]
[Round "5"]
[White "Aragon"]
[Black "Quiet_Desperation"]
[Result "1-0"]
[WhiteElo "2095"]
[BlackElo "2175"]
[TimeControl "180+2"]
[EndTime "12:00:43 PDT"]
[Termination "Aragon won by resignation"]

1. e4 {[%clk 0:03:01.9]} 1... Nc6 {[%clk 0:02:59.7]} 2. d4 {[%clk 0:03:00.8]}
2... d5 {[%clk 0:02:59.9]} 3. e5 {[%clk 0:03:00.6]} 3... f6 {[%clk 0:02:47.9]}
4. f4 {[%clk 0:02:57]} 4... Bf5 {[%clk 0:02:42.9]} 5. Nf3 {[%clk 0:02:34.6]}
5... e6 {[%clk 0:02:39]} 6. Bd3 {[%clk 0:02:25.7]} 6... Nh6 {[%clk 0:02:38.4]}
7. c3 {[%clk 0:02:21.3]} 7... Be7 {[%clk 0:02:37.9]} 8. Be3 {[%clk 0:02:17.9]}
8... Bxd3 {[%clk 0:02:34.4]} 9. Qxd3 {[%clk 0:02:17.5]} 9... Qd7 {[%clk
0:02:36]} 10. b4 {[%clk 0:02:08.6]} 10... O-O-O {[%clk 0:02:33.6]} 11. a4 {[%clk
0:02:01.1]} 11... fxe5 {[%clk 0:02:22.1]} 12. dxe5 {[%clk 0:01:12.2]} 12... Nf5
{[%clk 0:02:21.4]} 13. Bf2 {[%clk 0:01:12.5]} 13... d4 {[%clk 0:02:20.3]} 14. b5
{[%clk 0:01:12.9]} 14... Na5 {[%clk 0:02:16.9]} 15. cxd4 {[%clk 0:01:13.5]}
15... c5 {[%clk 0:02:14.2]} 16. Qc3 {[%clk 0:01:03.6]} 16... b6 {[%clk
0:02:08.1]} 17. Nbd2 {[%clk 0:00:55.7]} 17... Kb8 {[%clk 0:02:03.5]} 18. dxc5
{[%clk 0:00:54.9]} 18... Bxc5 {[%clk 0:02:04.7]} 19. Bxc5 {[%clk 0:00:53.7]}
19... bxc5 {[%clk 0:02:06]} 20. Qxa5 {[%clk 0:00:30.3]} 20... Ne3 {[%clk
0:02:07]} 21. b6 {[%clk 0:00:21.6]} 21... Nc2+ {[%clk 0:02:01.5]} 22. Kf2 {[%clk
0:00:22.1]} 22... Nxa1 {[%clk 0:02:02.7]} 23. Rxa1 {[%clk 0:00:16.9]} 23... g5
{[%clk 0:01:57.6]} 24. bxa7+ {[%clk 0:00:15.1]} 24... Ka8 {[%clk 0:01:58.9]} 25.
Qxc5 {[%clk 0:00:13]} 25... g4 {[%clk 0:01:58.4]} 26. Nc4 {[%clk 0:00:09.9]}
26... Qxa7 {[%clk 0:01:50.8]} 27. Nb6+ {[%clk 0:00:09.4]} 27... Kb7 {[%clk
0:01:52]} 28. Rb1 {[%clk 0:00:09.8]} 28... Ka6 {[%clk 0:01:30.8]} 29. Qb5+
{[%clk 0:00:09.6]} 29... Kb7 {[%clk 0:01:32.2]} 30. Nd4 {[%clk 0:00:08.4]} 30...
Rxd4 {[%clk 0:01:32.1]} 31. Qc5 {[%clk 0:00:09]} 31... Rd2+ {[%clk 0:01:31.4]}
32. Kg3 {[%clk 0:00:09.8]} 32... Rd3+ {[%clk 0:01:28.6]} 33. Kh4 {[%clk
0:00:09.9]} 33... Ka6 {[%clk 0:01:17.5]} 34. Qb5+ {[%clk 0:00:09.8]} 34... Kb7
{[%clk 0:01:18.9]} 35. Qxd3 {[%clk 0:00:11.6]} 35... Qb8 {[%clk 0:01:19.2]} 36.
Qd7+ {[%clk 0:00:11.8]} 36... Ka6 {[%clk 0:01:19.1]} 37. Rb5 {[%clk 0:00:10.7]}
37... Qd8+ {[%clk 0:01:20.1]} 38. Qxd8 {[%clk 0:00:11.1]} 38... Rxd8 {[%clk
0:01:22]} 39. Kxg4 {[%clk 0:00:11.6]} 39... Rd2 {[%clk 0:01:21.7]} 40. g3 {[%clk
0:00:11.5]} 40... Rxh2 {[%clk 0:01:22.4]} 41. f5 {[%clk 0:00:13.4]} 41... Rd2
{[%clk 0:01:18.5]} 42. f6 {[%clk 0:00:13.7]} 42... Rd8 {[%clk 0:01:20.4]} 43.
Kg5 {[%clk 0:00:14]} 43... Rg8+ {[%clk 0:01:21.3]} 44. Kh6 {[%clk 0:00:15.2]}
44... Rxg3 {[%clk 0:01:23]} 45. Kxh7 {[%clk 0:00:15.8]} 45... Rf3 {[%clk
0:01:24.6]} 46. Kg7 {[%clk 0:00:16.5]} 46... Rg3+ {[%clk 0:01:25.6]} 47. Kf7
{[%clk 0:00:17.6]} 47... Rf3 {[%clk 0:01:26.7]} 48. Kxe6 {[%clk 0:00:19.5]} 1-0

[Event "*** Titled Tuesday 3|2 Blitz"]
[Site "Chess.com"]
[Date "2016.07.05"]
[Round "5"]
[White "viditchess"]
[Black "ChessNinja48"]
[Result "1-0"]
[WhiteElo "2533"]
[BlackElo "2319"]
[TimeControl "180+2"]
[EndTime "12:00:57 PDT"]
[Termination "viditchess won by resignation"]

1. Nf3 {[%clk 0:03:01.9]} 1... Nf6 {[%clk 0:03:00.8]} 2. c4 {[%clk 0:03:02.9]}
2... c6 {[%clk 0:03:01.4]} 3. d4 {[%clk 0:03:02.6]} 3... d5 {[%clk 0:03:02.7]}
4. e3 {[%clk 0:03:04.2]} 4... g6 {[%clk 0:03:03.6]} 5. Nc3 {[%clk 0:03:04.2]}
5... Bg7 {[%clk 0:03:05.1]} 6. Be2 {[%clk 0:03:05.8]} 6... O-O {[%clk
0:03:06.5]} 7. O-O {[%clk 0:03:07.4]} 7... a6 {[%clk 0:03:08.1]} 8. Bd2 {[%clk
0:03:08.2]} 8... b5 {[%clk 0:03:09.5]} 9. cxd5 {[%clk 0:03:08.7]} 9... cxd5
{[%clk 0:03:10.5]} 10. Rc1 {[%clk 0:03:06.1]} 10... Bf5 {[%clk 0:02:52.1]} 11.
Ne5 {[%clk 0:03:04.9]} 11... Nfd7 {[%clk 0:02:42.4]} 12. Nd3 {[%clk 0:02:33.2]}
12... Nb6 {[%clk 0:02:18.8]} 13. Nc5 {[%clk 0:02:28.9]} 13... Nc6 {[%clk
0:02:17.5]} 14. b3 {[%clk 0:02:27]} 14... Qd6 {[%clk 0:02:05.4]} 15. Bd3 {[%clk
0:02:17.3]} 15... Bxd3 {[%clk 0:01:46.3]} 16. Nxd3 {[%clk 0:02:19.2]} 16... Rad8
{[%clk 0:01:23.9]} 17. Ne2 {[%clk 0:02:16.9]} 17... Rfe8 {[%clk 0:00:54.1]} 18.
f4 {[%clk 0:02:03.9]} 18... e6 {[%clk 0:00:51]} 19. Nc5 {[%clk 0:02:02.8]} 19...
Ra8 {[%clk 0:00:31.4]} 20. Qc2 {[%clk 0:01:59.4]} 20... Ne7 {[%clk 0:00:32.7]}
21. Qd3 {[%clk 0:01:56.2]} 21... Nf5 {[%clk 0:00:32.8]} 22. g4 {[%clk
0:01:56.8]} 22... Ne7 {[%clk 0:00:26.6]} 23. Rc2 {[%clk 0:01:57.9]} 23... f6
{[%clk 0:00:24.2]} 24. Rfc1 {[%clk 0:01:55.6]} 24... e5 {[%clk 0:00:25.6]} 25.
Be1 {[%clk 0:01:41.7]} 25... h5 {[%clk 0:00:23.9]} 26. gxh5 {[%clk 0:01:41.5]}
26... e4 {[%clk 0:00:24.8]} 27. Qd1 {[%clk 0:01:42.2]} 27... gxh5 {[%clk
0:00:25.7]} 28. Ng3 {[%clk 0:01:42.3]} 28... h4 {[%clk 0:00:25.4]} 29. Nh5
{[%clk 0:01:43.5]} 29... Bh6 {[%clk 0:00:23.8]} 30. Bxh4 {[%clk 0:01:40.8]}
30... Kf7 {[%clk 0:00:22.3]} 31. Nxf6 {[%clk 0:01:39.6]} 31... Rg8+ {[%clk
0:00:19.8]} 32. Kh1 {[%clk 0:01:17.6]} 32... Rg6 {[%clk 0:00:20.7]} 33. Qh5
{[%clk 0:01:17.3]} 33... Rh8 {[%clk 0:00:21.3]} 34. f5 {[%clk 0:01:12]} 34...
Nxf5 {[%clk 0:00:18]} 35. Qxf5 {[%clk 0:01:13.2]} 35... Rxf6 {[%clk 0:00:16]}
36. Bxf6 {[%clk 0:01:13.3]} 36... Qxf6 {[%clk 0:00:17.3]} 37. Qxf6+ {[%clk
0:01:01.4]} 37... Kxf6 {[%clk 0:00:19.2]} 38. Re2 {[%clk 0:01:01.3]} 38... Bg5
{[%clk 0:00:15.9]} 39. Rf1+ {[%clk 0:01:01.5]} 39... Ke7 {[%clk 0:00:17.2]} 40.
Rf5 {[%clk 0:01:01.4]} 40... Bf6 {[%clk 0:00:18]} 41. a4 {[%clk 0:01:00.3]}
41... bxa4 {[%clk 0:00:18.5]} 42. bxa4 {[%clk 0:01:02.2]} 42... a5 {[%clk
0:00:17]} 43. Rb2 {[%clk 0:01:03.2]} 43... Nc4 {[%clk 0:00:09.5]} 44. Rb7+
{[%clk 0:01:04]} 1-0

[Event "*** Titled Tuesday 3|2 Blitz"]
[Site "Chess.com"]
[Date "2016.07.05"]
[Round "5"]
[White "Grootneus"]
[Black "Usurpov"]
[Result "0-1"]
[WhiteElo "2055"]
[BlackElo "2330"]
[TimeControl "180+2"]
[EndTime "12:01:01 PDT"]
[Termination "Usurpov won by resignation"]

1. e4 {[%clk 0:02:35.8]} 1... c5 {[%clk 0:03:00.4]} 2. c3 {[%clk 0:02:36.8]}
2... e6 {[%clk 0:03:01.1]} 3. d4 {[%clk 0:02:36.6]} 3... d5 {[%clk 0:03:00.4]}
4. exd5 {[%clk 0:02:37.7]} 4... exd5 {[%clk 0:02:59.5]} 5. Nf3 {[%clk
0:02:39.2]} 5... Nf6 {[%clk 0:02:59.4]} 6. Bb5+ {[%clk 0:02:39.5]} 6... Bd7
{[%clk 0:02:58.4]} 7. Bxd7+ {[%clk 0:02:40]} 7... Nbxd7 {[%clk 0:02:59.2]} 8.
O-O {[%clk 0:02:40.8]} 8... Be7 {[%clk 0:02:55.4]} 9. dxc5 {[%clk 0:02:40.6]}
9... Nxc5 {[%clk 0:02:57.3]} 10. Be3 {[%clk 0:02:30.1]} 10... O-O {[%clk
0:02:56.2]} 11. Nbd2 {[%clk 0:02:28.7]} 11... Re8 {[%clk 0:02:56.2]} 12. Nb3
{[%clk 0:02:28.5]} 12... Nce4 {[%clk 0:02:54.3]} 13. Nfd2 {[%clk 0:02:16.5]}
13... Qc7 {[%clk 0:02:20.3]} 14. Nxe4 {[%clk 0:02:10.6]} 14... dxe4 {[%clk
0:02:20.1]} 15. Qe2 {[%clk 0:02:10.7]} 15... Nd5 {[%clk 0:02:13.9]} 16. Bd4
{[%clk 0:01:51]} 16... Bf8 {[%clk 0:02:10.6]} 17. Rfe1 {[%clk 0:01:39.8]} 17...
f5 {[%clk 0:02:07]} 18. Rad1 {[%clk 0:01:25]} 18... Nf4 {[%clk 0:01:56.3]} 19.
Qb5 {[%clk 0:01:25.8]} 19... Qf7 {[%clk 0:01:47.5]} 20. Re3 {[%clk 0:00:52.1]}
20... a6 {[%clk 0:01:38]} 21. Qb6 {[%clk 0:00:42.1]} 21... Nd5 {[%clk
0:01:37.4]} 22. Qa5 {[%clk 0:00:39.1]} 22... b5 {[%clk 0:01:16.7]} 23. Ree1
{[%clk 0:00:24.2]} 23... f4 {[%clk 0:01:09.1]} 24. Bc5 {[%clk 0:00:15.8]} 24...
f3 {[%clk 0:01:03.1]} 25. Bxf8 {[%clk 0:00:12.8]} 25... Rxf8 {[%clk 0:01:01.6]}
26. g3 {[%clk 0:00:13.5]} 26... e3 {[%clk 0:01:01.2]} 27. Nd4 {[%clk 0:00:07.2]}
27... e2 {[%clk 0:00:57.6]} 28. Rd3 {[%clk 0:00:08.3]} 28... Qg6 {[%clk
0:00:46.5]} 29. c4 {[%clk 0:00:08.3]} 29... Qxd3 {[%clk 0:00:44.8]} 0-1